Cogmind - Beta 14 @@@ ROGUE MODE // 2024.09.01 @ 16:47:32 // Winter2022/Polymind Player: f3-rnm Result: Self-destructed Performance ------------- Evolutions (1) 500 Regions Visited (3) 600 Robots Destroyed (1) 5 Value Destroyed (0) 0 Prototype IDs (0) 0 Alien Tech Used (0) 0 Bonus (335) 335 TOTAL SCORE: 1330 Bonus ------- Polymind Skill 660 Friendly Fire -325 Cogmind --------- Core Integrity 400/400 Matter 0/0 Energy 25/25 System Corruption 0% Temperature Cool (1) Movement Hovering (60) Location -9/Materials Parts ------- > --- POWER (1) -------- Light Ion Engine > --- PROPULSION (2) --- Hover Unit Hover Unit > --- UTILITY (3) ------ Visual Processing Unit Sensor Array Signal Interpreter > --- WEAPON (0) ------- (None) > --- INVENTORY (0) ---- (None) Peak State ------------ > --- POWER ------------ Light Ion Engine > --- PROPULSION ------- Hover Unit Hover Unit > --- UTILITY ---------- Visual Processing Unit Sensor Array Signal Interpreter > --- WEAPON ----------- (None) > --- INVENTORY -------- (None) [Rating: 7] Favorites ----------- Power Light Ion Engine Engine Light Ion Engine Propulsion Hover Unit Hover Unit Hover Unit Utility Visual Processing Unit Device Sensor Array Processor Visual Processing Unit Weapon None Build | -11 -10 -10 -9 ------- Run | Yrd Mat Min Mat Slots Evolved . | . . . . Power . | . . . . Propulsion . | . . . . Utility . | . . . . Weapon . | . . . . Parts Attached . | . . . . Power . | . . . . Engine . | . . . . Core . | . . . . Reactor . | . . . . Propulsion . | . . . . Treads . | . . . . Leg . | . . . . Wheel . | . . . . Hover . | . . . . Flight . | . . . . Utility . | . . . . Device . | . . . . Storage . | . . . . Processor . | . . . . Hackware . | . . . . Protection . | . . . . Artifact . | . . . . Weapon . | . . . . Energy Gun . | . . . . Energy Cannon . | . . . . Ballistic Gun . | . . . . Ballistic Cannon . | . . . . Launcher . | . . . . Special Weapon . | . . . . Impact Weapon . | . . . . Slashing Weapon . | . . . . Piercing Weapon . | . . . . Special Melee Weapon . | . . . . Unidentified Prototypes . | . . . . Parts Lost . | . . . . Power . | . . . . Propulsion . | . . . . Utility . | . . . . Weapon . | . . . . Highest Loss Streak . | . . . . To Critical Strikes . | . . . . Average Slot Usage (%) 88 | . . 100 100 Engine 14 | . . 16 16 Hover 29 | . . 33 33 Device 14 | . . 16 16 Processor 29 | . . 33 33 Peak Build Rating 7 | . 7 7 7 Average Rating 5 | . 1 7 7 On Entrance 3 | . . 7 7 Naked Turns 30 | . 30 . . Heaviest Build 4 | . 4 4 4 Greatest Support 12 | 3 12 12 6 Greatest Overweight (x) . | . . . . Average Overweight (x) . | . . . . Largest Inventory Capacity . | . . . . Average Capacity . | . . . . Most Carried . | . . . . Average Carried . | . . . . Final Capacity . | . . . . Final Carried . | . . . . Class Distribution -------------------- 88% | Watcher 11% | Cogmind Dominant Class ---------------- Cogmind | -10/Materials Watcher | -10/Mines Watcher | -9/Materials Resources | -11 -10 -10 -9 ----------- Run | Yrd Mat Min Mat Matter Collected . | . . . . Remotely . | . . . . Salvage Created . | . . . . Parts 3 | . . 3 . Haulers Intercepted . | . . . . Recyclers Shooed . | . . . . Parts Field Recycled . | . . . . Retrieved Matter . | . . . . Parts Self-Destructed . | . . . . Prevented . | . . . . Kills | -11 -10 -10 -9 ------- Run | Yrd Mat Min Mat Combat Hostiles Destroyed . | . . . . Classes Destroyed 1 | . . 1 . Thug 1 | . . 1 . Best Kill Streak . | . . . . Combat Bots Only . | . . . . Max Kills in Single Turn 1 | . . 1 . Gunslinging . | . . . . Exploded . | . . . . Melee . | . . . . Uniques/NPCs Destroyed . | . . . . Combat | -11 -10 -10 -9 -------- Run | Yrd Mat Min Mat Hostile Shots Fired . | . . . . Missed . | . . . . Damage Taken 112 | . . 112 . Core 34 | . . 34 . Absorbed by Shields . | . . . . Core Remaining (%) 93 | 100 . 86 . Volleys Fired . | . . . . Largest . | . . . . Hottest . | . . . . Shots Fired . | . . . . Gun . | . . . . Cannon . | . . . . Launcher . | . . . . Special . | . . . . Kinetic . | . . . . Thermal . | . . . . Explosive . | . . . . Electromagnetic . | . . . . Robot Hit Streak . | . . . . Robot Miss Streak . | . . . . Penetration Max . | . . . . Secondary Targets . | . . . . Shots Hit Robots . | . . . . Core Hits 14 | . . 14 . Critical Kills . | . . . . Critical Parts Destroyed . | . . . . Critical Strikes . | . . . . Melee Attacks . | . . . . Impact . | . . . . Slashing . | . . . . Piercing . | . . . . Sneak Attacks . | . . . . Combat Hostiles . | . . . . Follow-up Attacks . | . . . . Damage Inflicted 225 | . . 225 . Guns . | . . . . Cannons . | . . . . Explosions . | . . . . Melee . | . . . . Ramming 225 | . . 225 . Kinetic . | . . . . Thermal . | . . . . Explosive . | . . . . Electromagnetic . | . . . . Impact . | . . . . Slashing . | . . . . Piercing . | . . . . Highest Corruption 8 | . . 8 . Average Corruption 6 | . . 6 . Corruption Purged . | . . . . Corruption Blocked . | . . . . Effects 5 | . . 5 . Message Errors 3 | . . 3 . Data Loss (minor) 2 | . . 2 . Overload Shots . | . . . . Overflow Damage 2 | . . 2 . Projectiles . | . . . . Explosions . | . . . . Melee 2 | . . 2 . Knockbacks 5 | . . 5 . Impact 5 | . . 5 . Kinetic . | . . . . Secondary . | . . . . Self-Inflicted Damage 95 | . . 95 . Shots . | . . . . Rammed 104 | . . 104 . Targets Rammed 104 | . . 104 . Kicked . | . . . . Crushed . | . . . . Highest Temperature . | . . . . Average Temperature . | . . . . Received Heat Transfer . | . . . . Siege Activations . | . . . . Robots Corrupted 1 | . . 1 . Combat Hostiles . | . . . . Parts Fried 2 | . . 2 . Impact Corruptions 1 | . . 1 . Robots Melted . | . . . . Combat Hostiles . | . . . . Parts Melted . | . . . . Heat Transferred . | . . . . Parts Sabotaged . | . . . . Parts Stolen . | . . . . Parts Stripped . | . . . . Power Chain Reactions . | . . . . Alert | -11 -10 -10 -9 ------- Run | Yrd Mat Min Mat Peak Influence 38 | . 15 4 38 Initial 4 | . . 4 1 Average 4 | . 8 4 3 Maximum Alert Level . | . . . . Low Security (%) 100 | 100 100 100 100 Level 1 . | . . . . Level 2 . | . . . . Level 3 . | . . . . Level 4 . | . . . . Level 5 . | . . . . High Security . | . . . . Max Security . | . . . . Squads Dispatched . | . . . . Investigation . | . . . . Extermination . | . . . . Reinforcement . | . . . . Assault . | . . . . Garrison . | . . . . Intercept . | . . . . Searches Triggered . | . . . . Construction Impeded . | . . . . Haulers Reinforced . | . . . . Active Scanning Responses . | . . . . Cargo Convoy Interrupts . | . . . . Stealth | -11 -10 -10 -9 --------- Run | Yrd Mat Min Mat Distress Signals . | . . . . Communications Jammed . | . . . . Distress Signals . | . . . . Times Spotted 1 | . 1 . . Peak Tracking Total 1 | . 1 . . Tactical Retreats . | . . . . Traps | -11 -10 -10 -9 ------- Run | Yrd Mat Min Mat Traps Triggered . | . . . . Indirectly . | . . . . Trap Hack Attempts . | . . . . Triggered . | . . . . Disarmed . | . . . . Reprogrammed . | . . . . Reused . | . . . . Traps Extracted . | . . . . Installed . | . . . . Triggered . | . . . . Machines | -11 -10 -10 -9 ---------- Run | Yrd Mat Min Mat Machines Disabled . | . . . . Max in Single Turn . | . . . . Machines Repaired . | . . . . Machines Dismantled . | . . . . Machines Sabotaged . | . . . . Overloaded Fab Kills . | . . . . Hacking | -11 -10 -10 -9 --------- Run | Yrd Mat Min Mat Machines Accessed 2 | . . 1 1 Terminals 1 | . . . 1 Fabricators . | . . . . Repair Stations . | . . . . Recycling Units . | . . . . Scanalyzers . | . . . . Garrison Access . | . . . . Total Hacks 5 | . . 1 4 Successful 2 | . . 1 1 Failed 3 | . . . 3 Catastrophic 1 | . . . 1 Database Lockouts . | . . . . Manual . | . . . . Terminals 4 | . . . 4 Fabricators . | . . . . Repair Stations . | . . . . Recycling Units . | . . . . Scanalyzers . | . . . . Garrison Access . | . . . . Terminal Hacks 2 | . . 1 1 Open Door 1 | . . 1 . Branch Access Points 1 | . . . 1 Fabricator Hacks . | . . . . Repair Station Hacks . | . . . . Recycling Unit Hacks . | . . . . Scanalyzer . | . . . . Garrison Access Hacks . | . . . . Unauthorized Hacks . | . . . . Terminals . | . . . . Fabricators . | . . . . Repair Stations . | . . . . Recycling Units . | . . . . Scanalyzers . | . . . . Garrison Access . | . . . . Data Cores Recovered . | . . . . Used . | . . . . Hacking Detections 1 | . . . 1 Full Trace Events . | . . . . Feedback Events . | . . . . Feedback Blocked . | . . . . Robot Schematics Acquired . | . . . . Robots Built . | . . . . Authchips . | . . . . Time . | . . . . Total Robot Build Rating . | . . . . Part Schematics Acquired . | . . . . Parts Built . | . . . . Authchips . | . . . . Time . | . . . . Total Part Build Rating . | . . . . Parts Repaired . | . . . . Time . | . . . . Parts Recycled . | . . . . Recycled Matter . | . . . . Retrieved Matter . | . . . . Retrieved Components . | . . . . Parts Scanalyzed . | . . . . Part Schematics Acquired . | . . . . Parts Damaged . | . . . . Bothacking | -11 -10 -10 -9 ------------ Run | Yrd Mat Min Mat Used RIF Installer . | . . . . Robots Hacked 1 | . 1 . . Non-combat 1 | . 1 . . Combat . | . . . . Robot Hacks Applied 2 | . 2 . . map_route 1 | . 1 . . mark_security 1 | . 1 . . Relay Couplers Released . | . . . . Fabnet Peak Effective % . | . . . . Robots Rewired . | . . . . Allies Hacked . | . . . . Hacks Repelled . | . . . . Allies | -11 -10 -10 -9 -------- Run | Yrd Mat Min Mat Total Allies . | . . . . Largest Group . | . . . . Highest-Rated Group . | . . . . Highest-Rated Ally . | . . . . Total Orders . | . . . . Ally Attacks . | . . . . Total Damage . | . . . . Kills . | . . . . Allies Corrupted . | . . . . Allies Melted . | . . . . Intel | -11 -10 -10 -9 ------- Run | Yrd Mat Min Mat Robot Analysis Total 1 | . 1 . . Derelict Logs Recovered 1 | . . 1 . Drone Launches . | . . . . Drone Recoveries . | . . . . Exploration | -11 -10 -10 -9 ------------- Run | Yrd Mat Min Mat Turns Passed 280 | 11 36 189 44 Spaces Moved 310 | 22 70 145 73 Core 80 | 22 58 . . Treads . | . . . . Legs . | . . . . Wheels . | . . . . Hover 230 | . 12 145 73 Flight . | . . . . Fastest Speed 50 | 50 50 56 60 Average Speed 56 | 50 51 58 60 Slowest Speed 60 | 50 56 60 60 Overloaded Moves . | . . . . Propulsion Burnouts . | . . . . Robots Hopped . | . . . . Cave-ins Triggered . | . . . . Exploration Rate (%) 14 | 4 17 24 11 Regions Visited 3 Branch Regions 1 Pre-discovered Areas . | . . . . Known Exits Taken 1 | . 1 . . Unknown Exits Taken 2 | 1 . 1 . Scrap Searched . | . . . . Spaces Dug . | . . . . Terrain Destroyed . | . . . . Melee . | . . . . Projectile . | . . . . AOE . | . . . . Terrain Rammed . | . . . . Walls Destroyed . | . . . . Machines Disabled . | . . . . Actions | -11 -10 -10 -9 --------- Run | Yrd Mat Min Mat Total 411 | 21 69 248 73 Wait . | . . . . Move 307 | 21 69 144 73 Hop . | . . . . Pick Up . | . . . . Fast Attach . | . . . . Attach . | . . . . Detach . | . . . . Swap . | . . . . Drop . | . . . . Fire . | . . . . Melee . | . . . . Ram 104 | . . 104 . Kick . | . . . . Crush . | . . . . Escape Stasis . | . . . . Rewire . | . . . . Trap . | . . . . Miscellaneous . | . . . . Route ------- -11/Scrapyard -10/Materials -10/Mines -9/Materials (discovered 2 exits: Min / Sto) History --------- Turn | Location | Event 4 | -11/Scrapyard | Discovered new exit (range 13) 12 | -11/Scrapyard | Entered Materials 26 | -10/Materials | Discovered new exit (range 16) 47 | -10/Materials | Identified exit to Mines 48 | -10/Materials | Entered Mines 64 | -10/Mines | Found the Drone Emporium 189 | -10/Mines | Learned Materials emergency access door positions 231 | -10/Mines | Discovered new exit (range 10) 237 | -10/Mines | Entered Materials 275 | -9/Materials | Identified exit to Mines 275 | -9/Materials | Identified exit to Storage 281 | -9/Materials | Self-destructed Last Messages --------------- 00182_ =4OL%Q7BKZQCENK, 62YWAP/CYH/ 00182_ 36-ZK1(g) system terminally corrupted. 00182_ Imp. Heat Sink fried. 00182_ Lgt. Angular Momentum Engine fried. 00189_ Acquired derelict log, extracted data. Data stored: Materials emergency access points. 00197_ R-06 Scavenger collects Corrupted Carbon-fiber Leg. 00201_ 9Q 00275_ Connecting with Terminal... 00275_ Current location identified: Materials >>Access(Branch) Found 2 branch access points: (49,50) Mines (38,81) Storage Map updated. Map ----- +----------------------------------------------------+ | ??????# # """ ""??????????????????????? | | ??????# + """ ""??????????????????????? | | ??????# # """ ""??????????????????????? | | ??????# # ?????????????????????? | | ??????# #? ????????????????????? | | ??????# ##################????????????? | | ??????# ?????????????? | | # #??????????????????? | | ?""" + #??????????????????? | | ?"""" # #??????????????????? | | ??""??## ########### #??????????????????? | | ???????# #?????????# #??????????????????? | | ???????# #?????????# +??????????????????? | | ???????# #?????????#### #??????????????????? | | ???????# #????????????# #??????????????????? | | ???????# #????????????# #??????????????????? | | ???????# #???########?# ####??????????????????? | | ??????? #???#!![[]]#?# #?????????????????????? | | ??????##### #???#!![[]]#?# #?????????????????????? | | ????????### #???# ### ###???????????????????? | | ????????# ### # #???????????????????? | | ????????# #???????????????????? | | ????????+ T #???????????????????? | | ????????# #???????????????????? | | ????????# #####+#+## #???????????????????? | | ?????????? ?????? ##w ##???????????????????? | | ?????????? ???? ## #????????????????????? | | ?????????? ???#! """ ## #????????????????????? | | ?????????? ???# """ ## #????????????????????? | | ????????????????# """ ## #????????????????????? | | ????????????????# # ????????????????????? | | ????????????????######## ???????????????????? | | ???????????????????????? Y ????????????????>?? | | ???????????????????????? ??????????????????? | | ???????????????????????? ###?????????????????? | | ????????????????????????######???????????????????? | | ?????????????????????????????????????????????????? | | ?????????????????????????????????????????????????? | | ?????????????????????????????????????????????????? | | ?????????????????????????????????????????????????? | | ?????????????????????????????????????????????????? | | ?????????????????????????????????????????????????? | | ?????????????????????????????????????????????????? | | ?????????????????????????????????????????????????? | | ?????????????????????????????????????????????????? | | ?????????????????????????????????????????????????? | | ?????????????????????????????????????????????????? | | ?????????????????????????????????????????????????? | | ?????????????????????????????????????????????????? | | ?????????????????????????????????????????????????? | +----------------------------------------------------+ Best States ------------- Heat Dissipation 25 Energy Generation 15 Energy Capacity 100 Sight Range 18 Robot Scan Range 14 Terrain Scan Density 10 Evasion (%) 53 Item Schematics ----------------- None Robot Schematics ------------------ None Fabricated ------------ Nothing Alien Tech Used ----------------- None Achievements -------------- None Challenges ------------ None Polymind | -11 -10 -10 -9 ---------- Run | Yrd Mat Min Mat Hosts 1 | . 1 . . Combat Hostiles . | . . . . Allies . | . . . . Unique Host Classes 1 | . 1 . . Average Host Suspicion 10 | . 2 6 28 Unsuspicious Activity 1046 | . 6 1040 . Returns to Shadow . | . . . . Fuzzy Dispatches . | . . . . Protomatter Created 19 | . . 19 . Used 12 | . 12 . . Decayed . | . . . . Highest Spend 12 | . 12 . . Game ------ Seed GaussRemoteProcessor Manual? 0 Play Time 00:03:43 Cumulative 246.0 hours Start 2024.09.01 @ 16:44:17 End 2024.09.01 @ 16:47:32 Sessions 1 Manual Loads 0 Difficulty Rogue Special Mode Winter2022/Polymind Game No. 258 Rogue 222 Adventurer 36 Explorer 0 Win Type - Total 10 Types 3/0/7/0/0/0/0/0/0 Lore% 62 Gallery% 82 Achievement% 72 Wizard Run 0 Options --------- Layout 0 ASCII 0 Keyboard 0 Movement Mouse Keybinds 0 Fullscreen 1 Font 18/SmallcapsGlow Map View 76x50 Zoom Use 0% Tactical HUD 1 Map Filters NONE Filters NONE Steam 1 RUN: d01567e5-7627-4f58-8d49-ffc5fb7755b5